[Event "GER-ch Youth U18 2019"]
[Site "Willingen"]
[Date "2019.06.14"]
[Round "8.4"]
[White "Muckle, Julius"]
[Black "Vuckovic, Zarko"]
[Result "0-1"]
[ECO "E43"]
[WhiteElo "2370"]
[BlackElo "2132"]
[Annotator "NA"]
[PlyCount "154"]
[EventDate "2019.06.07"]
[EventType "swiss"]
[EventRounds "9"]
[EventCountry "GER"]
[SourceTitle "playchess.com"]
[Source "ChessBase"]
[SourceQuality "1"]
[TimeControl "40/5400+30:1800+30"]

1. d4 {[%emt 0:00:00]} Nf6 {[%emt 0:00:00]} 2. c4 {[%emt 0:00:00]} e6 {[%emt 0:00:00]} 3. Nc3 {[%emt 0:00:00]} Bb4 {[%emt 0:00:00]} 4. e3 {[%emt 0:00:00]} b6 {[%emt 0:00:00]} 5. Bd3 {[%emt 0:00:00]} Bb7 {[%emt 0:00:00]} 6. Nf3 {[%emt 0:00:00]} Ne4 {[%emt 0:00:15]} 7. Qc2 {[%emt 0:00:15]} f5 {[%emt 0:00:17]} 8. O-O {[%emt 0:00:05]} Nxc3 {[%emt 0:00:05]} 9. bxc3 {[%emt 0:00:08]} Bxf3 {[%emt 0:00:06]} 10. gxf3 {[%emt 0:00:24]} Bd6 {[%emt 0:00:08]} 11. f4 {[%emt 0:05:47]} Qh4 {[%emt 0:03:25]} 12. f3 {[%emt 0:02:33]} Nc6 {[%emt 0:04:10]} 13. Qf2 {[%emt 0:04:35]} Qxf2+ {[%emt 0:00:01]} 14. Kxf2 {[%emt 0:00:08]} Na5 {[%emt 0:07:22]} 15. e4 {[%emt 0:02:17]} O-O {[%emt 0:02:16]} 16. exf5 {[%emt 0:16:07]} exf5 {[%emt 0:00:24]} 17. Be3 {[%emt 0:00:19]} g6 {[%emt 0:01:52]} 18. c5 {[%emt 0:00:18]} Be7 {[%emt 0:00:16]} 19. Rab1 {[%emt 0:14:23]} Rfe8 {[%emt 0:09:58]} 20. Rfd1 {[%emt 0:19:14]} Bf6 {[%emt 0:05:20]} 21. cxb6 {[%emt 0:15:50]} axb6 {[%emt 0:01:02]} 22. Rb2 {[%emt 0:10:55]} Re7 {[%emt 0:04:37]} 23. Bc1 {[%emt 0:03:02]} d5 {[%emt 0:05:02]} 24. Rb5 {[%emt 0:01:01]} Rd7 {[%emt 0:00:57]} 25. Kg3 {[%emt 0:01:38]} Kf7 {[%emt 0:05:26]} 26. Re1 {[%emt 0:00:38]} Nb7 {[%emt 0:02:37]} 27. Rb2 {[%emt 0:00:27]} Re7 {[%emt 0:01:28]} 28. Rxe7+ {[%emt 0:00:35]} Kxe7 {[%emt 0:00:08]} 29. Re2+ {[%emt 0:01:25]} Kd7 {[%emt 0:01:37]} 30. h4 {[%emt 0:01:50]} Nd6 {[%emt 0:00:54]} 31. Be3 {[%emt 0:00:55]} Nc4 {[%emt 0:02:48]} 32. Bc1 {[%emt 0:00:35]} Nd6 {[%emt 0:03:38]} 33. Be3 {[%emt 0:00:23]} Re8 {[%emt 0:00:32]} 34. Bf2 {[%emt 0:00:39]} Rxe2 {[%emt 0:01:39]} 35. Bxe2 {[%emt 0:00:01]} Ne8 {[%emt 0:00:54]} 36. Bd3 {[%emt 0:00:36]} Ng7 {[%emt 0:00:25]} 37. Be3 {[%emt 0:00:00]} Nh5+ {[%emt 0:01:00]} 38. Kh3 {[%emt 0:00:02]} Be7 {[%emt 0:00:19]} 39. c4 {[%emt 0:00:37]} Bd6 {[%emt 0:01:02]} 40. cxd5 {[%emt 0:01:01]} Bxf4 {[%emt 0:00:09]} 41. Bg1 {[%emt 0:05:12]} Kd6 {[%emt 0:01:09]} 42. Bc4 {[%emt 0:03:30]} Nf6 {[%emt 0:00:32]} 43. Bf2 {[%emt 0:03:27]} Nxd5 {[%emt 0:00:55]} 44. Kg2 {[%emt 0:00:10]} c6 {[%emt 0:07:09]} 45. a4 {[%emt 0:00:10]} Ke6 {[%emt 0:05:32]} 46. Kf1 {[%emt 0:01:21]} Kf6 {[%emt 0:01:10]} 47. Ba6 {[%emt 0:01:50]} Be3 {[%emt 0:01:29]} 48. Be1 {[%emt 0:03:39]} Bxd4 {[%emt 0:00:43]} 49. Bb7 {[%emt 0:00:09]} Ne7 {[%emt 0:00:10]} 50. Bb4 {[%emt 0:00:13]} c5 51. Bd2 Ke6 {[%emt 0:01:14]} 52. Ke2 {[%emt 0:00:47]} Bf6 {[%emt 0:00:32]} 53. Be1 {[%emt 0:01:38]} f4 {[%emt 0:05:40]} 54. Kd3 {[%emt 0:01:33]} Nf5 {[%emt 0:01:22]} 55. Bc8+ {[%emt 0:03:32]} Kd5 {[%emt 0:00:45]} 56. Bb7+ {[%emt 0:01:40]} Ke5 {[%emt 0:01:58]} 57. Bc3+ {[%emt 0:02:11]} Ke6 {[%emt 0:00:10]} 58. Bc8+ {[%emt 0:00:27]} Ke7 {[%emt 0:00:27]} 59. Bxf5 {[%emt 0:00:25]} Bxc3 {[%emt 0:00:22]} 60. Be4 {[%emt 0:07:07]} Be1 {[%emt 0:00:44]} 61. h5 {[%emt 0:00:10]} gxh5 {[%emt 0:00:11]} 62. Bxh7 {[%emt 0:00:02]} Kf6 {[%emt 0:00:17]} 63. Ke4 {[%emt 0:02:18]} Bd2 {[%emt 0:00:23]} 64. Bg8 {[%emt 0:01:09]} h4 {[%emt 0:00:54]} 65. Bc4 {[%emt 0:00:33]} h3 {[%emt 0:00:07]} 66. Bf1 {[%emt 0:00:00]} h2 {[%emt 0:00:07]} 67. Bg2 {[%emt 0:00:03]} Kg5 {[%emt 0:00:15]} 68. Kd3 {[%emt 0:00:00]} Kh4 {[%emt 0:00:20]} 69. Kxd2 {[%emt 0:01:53]} Kg3 {[%emt 0:00:07]} 70. Bh1 {[%emt 0:00:32]} Kf2 {[%emt 0:00:06]} 71. Kd1 {[%emt 0:00:33]} Kg1 72. Ke1 Kxh1 {[%emt 0:00:16]} 73. Kf1 {[%emt 0:00:59]} c4 {[%emt 0:00:06]} 74. Kf2 {[%emt 0:00:32]} c3 {[%emt 0:00:06]} 75. a5 {[%emt 0:00:02]} bxa5 {[%emt 0:00:15]} 76. Kf1 {[%emt 0:00:04]} c2 {[%emt 0:00:12]} 77. Kf2 {[%emt 0:00:01]} c1=Q {[%emt 0:00:19] normal} 0-1

[Event "GER-ch Youth U18 2019"]
[Site "Willingen"]
[Date "2019.06.14"]
[Round "8.5"]
[White "Riess, Alexander"]
[Black "Kuznecovs, Nikita"]
[Result "1/2-1/2"]
[ECO "D38"]
[WhiteElo "2305"]
[BlackElo "2317"]
[Annotator "NA"]
[PlyCount "61"]
[EventDate "2019.06.07"]
[EventType "swiss"]
[EventRounds "9"]
[EventCountry "GER"]
[SourceTitle "playchess.com"]
[Source "ChessBase"]
[SourceQuality "1"]
[TimeControl "40/5400+30:1800+30"]

1. d4 {[%emt 0:00:00]} Nf6 {[%emt 0:00:00]} 2. c4 {[%emt 0:00:00]} e6 {[%emt 0:00:00]} 3. Nf3 {[%emt 0:00:00]} d5 {[%emt 0:00:00]} 4. Nc3 {[%emt 0:00:01]} Bb4 {[%emt 0:00:00]} 5. Qa4+ {[%emt 0:04:15]} Nc6 {[%emt 0:00:08]} 6. e3 {[%emt 0:00:15]} O-O {[%emt 0:06:45]} 7. Bd2 {[%emt 0:02:23]} Bd7 {[%emt 0:18:37]} 8. Qc2 {[%emt 0:00:30]} Re8 {[%emt 0:00:06]} 9. a3 {[%emt 0:03:24]} Bd6 {[%emt 0:01:36]} 10. Rd1 {[%emt 0:05:34]} a6 {[%emt 0:00:55]} 11. h3 {[%emt 0:04:00]} dxc4 {[%emt 0:00:48]} 12. Bxc4 {[%emt 0:00:32]} b5 {[%emt 0:00:06]} 13. Bd3 {[%emt 0:06:57]} b4 {[%emt 0:31:42]} 14. Ne4 {[%emt 0:03:41]} bxa3 {[%emt 0:00:06]} 15. bxa3 {[%emt 0:05:47]} Ne7 {[%emt 0:16:10]} 16. Nxf6+ {[%emt 0:17:47]} gxf6 {[%emt 0:00:08]} 17. Bxh7+ {[%emt 0:01:24]} Kh8 {[%emt 0:00:08]} 18. Be4 {[%emt 0:06:16]} Rg8 {[%emt 0:01:03]} 19. O-O {[%emt 0:03:48]} f5 {[%emt 0:03:49]} 20. Bd3 {[%emt 0:07:03]} Ng6 {[%emt 0:06:35]} 21. Bb4 {[%emt 0:07:18]} Nh4 22. Nxh4 {[%emt 0:00:21]} Qxh4 {[%emt 0:02:45]} 23. Bxd6 {[%emt 0:00:34]} cxd6 {[%emt 0:00:06]} 24. Kh2 {[%emt 0:00:29]} Rac8 {[%emt 0:07:27]} 25. Qe2 {[%emt 0:01:33]} f4 {[%emt 0:01:27]} 26. exf4 {[%emt 0:01:53]} e5 {[%emt 0:00:04]} 27. Qf3 {[%emt 0:04:57]} exf4 {[%emt 0:01:44]} 28. Rc1 {[%emt 0:00:59]} Rxg2+ {[%emt 0:00:41]} 29. Kxg2 {[%emt 0:01:43]} Rg8+ {[%emt 0:00:01]} 30. Kh2 {[%emt 0:01:58]} Bg4 {[%emt 0:00:03]} 31. Qd1 {normal} 1/2-1/2

[Event "GER-ch Youth U18 2019"]
[Site "Willingen"]
[Date "2019.06.14"]
[Round "8.7"]
[White "Muetsch, Annmarie"]
[Black "Faerber, David"]
[Result "1/2-1/2"]
[ECO "C06"]
[WhiteElo "2266"]
[BlackElo "2293"]
[Annotator "NA"]
[PlyCount "41"]
[EventDate "2019.06.07"]
[EventType "swiss"]
[EventRounds "9"]
[EventCountry "GER"]
[SourceTitle "playchess.com"]
[Source "ChessBase"]
[SourceQuality "1"]
[TimeControl "40/5400+30:1800+30"]

1. e4 {[%emt 0:00:00]} e6 {[%emt 0:00:41]} 2. d4 {[%emt 0:00:37]} d5 {[%emt 0:00:41]} 3. Nd2 {[%emt 0:00:59]} Nf6 {[%emt 0:00:32]} 4. e5 {[%emt 0:00:24]} Nfd7 {[%emt 0:00:35]} 5. Bd3 {[%emt 0:01:38]} c5 {[%emt 0:00:32]} 6. c3 {[%emt 0:00:07]} Nc6 {[%emt 0:00:46]} 7. Ne2 {[%emt 0:00:55]} cxd4 {[%emt 0:02:22]} 8. cxd4 {[%emt 0:00:11]} f6 {[%emt 0:00:39]} 9. exf6 {[%emt 0:00:09]} Nxf6 {[%emt 0:00:30]} 10. Nf3 {[%emt 0:00:47]} Bd6 {[%emt 0:01:08]} 11. O-O {[%emt 0:01:40]} Qc7 {[%emt 0:03:50]} 12. Bg5 {[%emt 0:05:16]} O-O {[%emt 0:04:25]} 13. Bh4 {[%emt 0:03:20]} Nh5 {[%emt 0:02:29]} 14. Qc2 {[%emt 0:01:38]} h6 {[%emt 0:01:31]} 15. Bh7+ {[%emt 0:02:24]} Kh8 {[%emt 0:01:04]} 16. Bg6 {[%emt 0:00:25]} Rxf3 {[%emt 0:01:03]} 17. Bxh5 {[%emt 0:00:25]} Rf5 {[%emt 0:00:55]} 18. Bg6 {[%emt 0:03:55]} Bxh2+ {[%emt 0:04:27]} 19. Kh1 {[%emt 0:00:13]} Bd6 {[%emt 0:00:12]} 20. Bxf5 {[%emt 0:00:20]} exf5 {[%emt 0:00:08]} 21. Rae1 {[%emt 0:05:26] normal} 1/2-1/2

[Event "GER-ch Youth U18 2019"]
[Site "Willingen"]
[Date "2019.06.14"]
[Round "8.8"]
[White "Browning, Alex"]
[Black "Ewert, Hannes"]
[Result "1-0"]
[ECO "C99"]
[WhiteElo "2319"]
[BlackElo "2268"]
[Annotator "NA"]
[PlyCount "53"]
[EventDate "2019.06.07"]
[EventType "swiss"]
[EventRounds "9"]
[EventCountry "GER"]
[SourceTitle "playchess.com"]
[Source "ChessBase"]
[SourceQuality "1"]
[TimeControl "40/5400+30:1800+30"]

1. e4 {[%emt 0:00:00]} e5 {[%emt 0:00:00]} 2. Nf3 {[%emt 0:00:00]} Nc6 {[%emt 0:00:00]} 3. Bb5 {[%emt 0:00:00]} a6 {[%emt 0:00:00]} 4. Ba4 {[%emt 0:00:00]} Nf6 {[%emt 0:00:00]} 5. O-O {[%emt 0:00:00]} Be7 {[%emt 0:00:01]} 6. Re1 {[%emt 0:00:04]} b5 {[%emt 0:00:05]} 7. Bb3 {[%emt 0:00:06]} d6 {[%emt 0:00:11]} 8. c3 {[%emt 0:00:07]} O-O {[%emt 0:00:05]} 9. h3 {[%emt 0:00:03]} Na5 {[%emt 0:00:36]} 10. Bc2 {[%emt 0:00:13]} c5 {[%emt 0:00:02]} 11. d4 {[%emt 0:00:16]} Qc7 {[%emt 0:00:09]} 12. Nbd2 {[%emt 0:04:13]} cxd4 {[%emt 0:00:19]} 13. cxd4 {[%emt 0:00:08]} Nc6 {[%emt 0:00:10]} 14. Nb3 {[%emt 0:02:11]} a5 {[%emt 0:00:58]} 15. a4 {[%emt 0:11:52]} bxa4 {[%emt 0:08:07]} 16. Rxa4 {[%emt 0:00:44]} Nb4 {[%emt 0:02:19]} 17. Bb1 {[%emt 0:00:13]} Bd7 {[%emt 0:02:11]} 18. Ra3 {[%emt 0:00:08]} a4 {[%emt 0:30:08]} 19. Nbd2 {[%emt 0:02:27]} exd4 {[%emt 0:19:18]} 20. Nxd4 {[%emt 0:02:42]} Rfe8 {[%emt 0:00:47]} 21. Rc3 {[%emt 0:12:02]} Qb7 {[%emt 0:04:18]} 22. Qf3 {[%emt 0:09:02]} Bf8 {[%emt 0:12:46]} 23. Ree3 {[%emt 0:13:43]} Nc6 {[%emt 0:08:04]} 24. e5 {[%emt 0:03:57]} dxe5 {[%emt 0:07:55]} 25. Nxc6 {[%emt 0:00:23]} e4 {[%emt 0:00:20]} 26. Nxe4 {[%emt 0:00:38]} Nd5 {[%emt 0:00:55]} 27. Nf6+ {[%emt 0:01:32] normal} 1-0

[Event "GER-ch Youth U18 2019"]
[Site "Willingen"]
[Date "2019.06.14"]
[Round "8.9"]
[White "Maetzkow, Maximilian Paul"]
[Black "Rockmann, Jan-Okke"]
[Result "0-1"]
[ECO "C77"]
[WhiteElo "2338"]
[BlackElo "1816"]
[Annotator "NA"]
[PlyCount "64"]
[EventDate "2019.06.07"]
[EventType "swiss"]
[EventRounds "9"]
[EventCountry "GER"]
[SourceTitle "playchess.com"]
[Source "ChessBase"]
[SourceQuality "1"]
[TimeControl "40/5400+30:1800+30"]

1. e4 {[%emt 0:00:00]} e5 {[%emt 0:00:00]} 2. Nf3 {[%emt 0:00:00]} Nc6 {[%emt 0:00:00]} 3. Bb5 {[%emt 0:00:00]} a6 {[%emt 0:00:00]} 4. Ba4 {[%emt 0:00:00]} Nf6 {[%emt 0:00:00]} 5. d3 {[%emt 0:00:00]} b5 {[%emt 0:00:00]} 6. Bb3 {[%emt 0:00:00]} Bc5 {[%emt 0:00:00]} 7. O-O {[%emt 0:00:13]} d6 {[%emt 0:00:06]} 8. c3 {[%emt 0:01:08]} h6 {[%emt 0:00:16]} 9. Nbd2 {[%emt 0:00:21]} O-O {[%emt 0:00:12]} 10. Re1 {[%emt 0:00:27]} Re8 {[%emt 0:00:21]} 11. Nf1 {[%emt 0:00:45]} Bb6 {[%emt 0:00:52]} 12. Ng3 {[%emt 0:01:09]} Ne7 {[%emt 0:00:24]} 13. d4 {[%emt 0:17:14]} Ng6 {[%emt 0:00:48]} 14. h3 {[%emt 0:02:01]} c5 {[%emt 0:00:18]} 15. d5 {[%emt 0:08:11]} c4 {[%emt 0:02:18]} 16. Bc2 {[%emt 0:01:53]} Nf4 {[%emt 0:11:02]} 17. Ne2 {[%emt 0:05:33]} g5 {[%emt 0:05:38]} 18. Nxf4 {[%emt 0:01:14]} gxf4 {[%emt 0:00:57]} 19. a4 {[%emt 0:23:43]} Kh8 {[%emt 0:18:34]} 20. axb5 {[%emt 0:11:10]} Rg8 {[%emt 0:00:19]} 21. Kf1 {[%emt 0:00:23]} Bxh3 {[%emt 0:00:20]} 22. gxh3 {[%emt 0:05:23]} Qd7 {[%emt 0:00:16]} 23. Ke2 {[%emt 0:07:57]} Rg2 {[%emt 0:00:29]} 24. Rf1 {[%emt 0:08:10]} Qxh3 {[%emt 0:00:34]} 25. Bxf4 {[%emt 0:00:12]} exf4 {[%emt 0:00:41]} 26. Qd2 {[%emt 0:02:30]} Be3 {[%emt 0:00:23]} 27. Qe1 {[%emt 0:00:20]} Ng4 {[%emt 0:01:34]} 28. Rxa6 {[%emt 0:01:37]} Rxa6 {[%emt 0:01:47]} 29. bxa6 {[%emt 0:00:01]} Nxf2 {[%emt 0:00:04]} 30. Rxf2 {[%emt 0:00:13]} Rxf2+ {[%emt 0:00:16]} 31. Qxf2 {[%emt 0:00:03]} Bxf2 {[%emt 0:00:05]} 32. Kxf2 {[%emt 0:00:01]} Qg3+ {[%emt 0:00:03] normal} 0-1

[Event "GER-ch Youth U18 2019"]
[Site "Willingen"]
[Date "2019.06.14"]
[Round "8.10"]
[White "Engel, Robert"]
[Black "Goldbeck, Lars"]
[Result "0-1"]
[ECO "B91"]
[WhiteElo "2067"]
[BlackElo "2199"]
[Annotator "NA"]
[PlyCount "104"]
[EventDate "2019.06.07"]
[EventType "swiss"]
[EventRounds "9"]
[EventCountry "GER"]
[SourceTitle "playchess.com"]
[Source "ChessBase"]
[SourceQuality "1"]
[TimeControl "40/5400+30:1800+30"]

1. e4 {[%emt 0:00:00]} c5 {[%emt 0:00:00]} 2. Nf3 {[%emt 0:00:00]} d6 {[%emt 0:00:00]} 3. d4 {[%emt 0:00:00]} cxd4 {[%emt 0:00:00]} 4. Nxd4 {[%emt 0:00:00]} Nf6 {[%emt 0:00:00]} 5. Nc3 {[%emt 0:00:00]} a6 {[%emt 0:00:00]} 6. g3 {[%emt 0:00:00]} e5 {[%emt 0:00:00]} 7. Nde2 {[%emt 0:00:00]} Be7 {[%emt 0:00:05]} 8. a4 {[%emt 0:00:08]} Be6 {[%emt 0:00:09]} 9. Bg2 {[%emt 0:01:08]} Nbd7 {[%emt 0:00:52]} 10. O-O {[%emt 0:02:01]} O-O {[%emt 0:01:37]} 11. h3 {[%emt 0:07:41]} h5 {[%emt 0:00:55]} 12. Be3 {[%emt 0:09:13]} Nb6 {[%emt 0:06:27]} 13. b3 {[%emt 0:02:05]} d5 {[%emt 0:00:29]} 14. Bxb6 {[%emt 0:04:50]} Qxb6 {[%emt 0:00:34]} 15. Nxd5 {[%emt 0:00:05]} Nxd5 {[%emt 0:00:09]} 16. exd5 {[%emt 0:00:02]} Bd7 {[%emt 0:00:33]} 17. a5 {[%emt 0:02:22]} Qd6 {[%emt 0:03:56]} 18. Nc3 {[%emt 0:11:42]} f5 {[%emt 0:03:57]} 19. Na4 {[%emt 0:02:43]} h4 {[%emt 0:08:24]} 20. Nb6 {[%emt 0:01:16]} hxg3 {[%emt 0:01:19]} 21. fxg3 {[%emt 0:05:16]} Rad8 {[%emt 0:04:23]} 22. c4 {[%emt 0:15:10]} e4 {[%emt 0:02:24]} 23. Qe1 {[%emt 0:00:05]} Bf6 {[%emt 0:10:26]} 24. Rd1 {[%emt 0:01:57]} Be5 {[%emt 0:01:50]} 25. g4 {[%emt 0:01:01]} Qc5+ {[%emt 0:13:01]} 26. Kh1 {[%emt 0:00:25]} Bb8 {[%emt 0:01:43]} 27. d6 {[%emt 0:04:01]} Bc6 {[%emt 0:14:59]} 28. b4 {[%emt 0:01:23]} Qe5 {[%emt 0:00:02]} 29. c5 {[%emt 0:00:18]} f4 {[%emt 0:00:01]} 30. Nc4 {[%emt 0:11:05]} Qe6 {[%emt 0:00:08]} 31. Rd4 {[%emt 0:00:08]} Qh6 {[%emt 0:02:54]} 32. Kh2 {[%emt 0:07:23]} Rde8 {[%emt 0:04:12]} 33. Bxe4 {[%emt 0:00:11]} Qf6 {[%emt 0:01:06]} 34. Qf2 {[%emt 0:06:36]} Rxe4 {[%emt 0:00:17]} 35. Rxe4 {[%emt 0:00:36]} Bxe4 {[%emt 0:00:02]} 36. Nd2 {[%emt 0:00:58]} Bc6 {[%emt 0:00:36]} 37. Nf3 {[%emt 0:00:28]} Qc3 {[%emt 0:05:18]} 38. Ng5 {[%emt 0:02:47]} Qg3+ {[%emt 0:02:53]} 39. Qxg3 {[%emt 0:00:01]} fxg3+ {[%emt 0:00:08]} 40. Kg1 {[%emt 0:00:04]} Re8 {[%emt 0:04:05]} 41. Rd1 {[%emt 0:30:32]} Bd7 {[%emt 0:32:19]} 42. Rd3 {[%emt 0:00:00]} Bb5 {[%emt 0:00:00]} 43. Rd4 {[%emt 0:00:00]} Bc6 {[%emt 0:00:00]} 44. Rd1 {[%emt 0:00:00]} g6 {[%emt 0:00:00]} 45. h4 {[%emt 0:00:00]} g2 {[%emt 0:00:13]} 46. Nh3 {[%emt 0:00:00]} Rf8 {[%emt 0:01:54]} 47. Nf2 {[%emt 0:00:00]} Re8 {[%emt 0:04:21]} 48. Nd3 {[%emt 0:00:00]} Re3 {[%emt 0:01:43]} 49. Nf4 {[%emt 0:00:00]} Kf7 {[%emt 0:00:29]} 50. g5 {[%emt 0:05:50]} Re4 {[%emt 0:01:17]} 51. Nd5 {[%emt 0:01:02]} Rxh4 {[%emt 0:00:55]} 52. Kxg2 {[%emt 0:00:20]} Rxb4 {[%emt 0:00:49] normal} 0-1

[Event "GER-ch Youth U18 2019"]
[Site "Willingen"]
[Date "2019.06.14"]
[Round "8.11"]
[White "Lange, Jannis"]
[Black "Hinrichs, Niklas"]
[Result "1-0"]
[ECO "B51"]
[WhiteElo "2024"]
[BlackElo "2115"]
[Annotator "NA"]
[PlyCount "65"]
[EventDate "2019.06.07"]
[EventType "swiss"]
[EventRounds "9"]
[EventCountry "GER"]
[SourceTitle "playchess.com"]
[Source "ChessBase"]
[SourceQuality "1"]
[TimeControl "40/5400+30:1800+30"]

1. e4 {[%emt 0:00:00]} c5 {[%emt 0:00:00]} 2. Nf3 {[%emt 0:00:00]} d6 {[%emt 0:00:00]} 3. Bb5+ {[%emt 0:00:00]} Nd7 {[%emt 0:00:00]} 4. O-O {[%emt 0:00:00]} Ngf6 {[%emt 0:00:19]} 5. Re1 {[%emt 0:00:39]} a6 {[%emt 0:00:53]} 6. Bd3 {[%emt 0:00:18]} e6 {[%emt 0:00:58]} 7. c3 {[%emt 0:01:11]} b5 {[%emt 0:00:13]} 8. Bc2 {[%emt 0:01:30]} c4 {[%emt 0:00:06]} 9. b3 {[%emt 0:00:23]} Bb7 {[%emt 0:02:28]} 10. bxc4 {[%emt 0:00:26]} bxc4 {[%emt 0:00:05]} 11. Na3 {[%emt 0:00:04]} Rc8 {[%emt 0:05:48]} 12. Rb1 {[%emt 0:00:15]} Ba8 {[%emt 0:11:40]} 13. Qe2 {[%emt 0:01:28]} d5 {[%emt 0:02:11]} 14. e5 {[%emt 0:25:58]} Ne4 {[%emt 0:02:23]} 15. Nd4 {[%emt 0:18:03]} Nec5 {[%emt 0:04:09]} 16. f4 {[%emt 0:09:00]} g6 {[%emt 0:09:09]} 17. f5 {[%emt 0:10:39]} Bg7 {[%emt 0:19:02]} 18. fxe6 {[%emt 0:08:07]} fxe6 {[%emt 0:01:44]} 19. d3 {[%emt 0:05:53]} cxd3 {[%emt 0:03:39]} 20. Bxd3 {[%emt 0:00:17]} O-O {[%emt 0:01:44]} 21. Bxa6 {[%emt 0:04:50]} Nxa6 {[%emt 0:01:14]} 22. Qxa6 {[%emt 0:00:10]} Nc5 {[%emt 0:04:45]} 23. Qe2 {[%emt 0:01:29]} Qe7 {[%emt 0:02:20]} 24. Nab5 {[%emt 0:00:18]} Qh4 {[%emt 0:15:04]} 25. Ba3 {[%emt 0:02:42]} Ne4 {[%emt 0:06:24]} 26. Bxf8 {[%emt 0:00:53]} Rxf8 {[%emt 0:00:16]} 27. Nf3 {[%emt 0:00:12]} Qd8 {[%emt 0:00:50]} 28. Qe3 {[%emt 0:03:07]} g5 {[%emt 0:02:06]} 29. Nbd4 {[%emt 0:01:28]} g4 {[%emt 0:01:35]} 30. Nd2 {[%emt 0:02:12]} Bxe5 {[%emt 0:02:36]} 31. Nxe4 {[%emt 0:01:24]} dxe4 {[%emt 0:00:34]} 32. Nxe6 {[%emt 0:00:52]} Qd6 {[%emt 0:01:08]} 33. Qg5+ {[%emt 0:01:56] normal} 1-0

[Event "GER-ch Youth U18 2019"]
[Site "Willingen"]
[Date "2019.06.14"]
[Round "8.12"]
[White "Schnabel, Bennett"]
[Black "Wong, Gengchun"]
[Result "1/2-1/2"]
[ECO "A00"]
[WhiteElo "2125"]
[BlackElo "2144"]
[Annotator "NA"]
[PlyCount "44"]
[EventDate "2019.06.07"]
[EventType "swiss"]
[EventRounds "9"]
[EventCountry "GER"]
[SourceTitle "playchess.com"]
[Source "ChessBase"]
[SourceQuality "1"]
[TimeControl "40/5400+30:1800+30"]

1. g3 {[%emt 0:02:27]} Nf6 {[%emt 0:00:00]} 2. Bg2 {[%emt 0:00:32]} d5 {[%emt 0:00:50]} 3. f4 {[%emt 0:00:16]} c5 {[%emt 0:05:02]} 4. Nf3 {[%emt 0:05:18]} Nc6 {[%emt 0:00:04]} 5. d3 {[%emt 0:00:08]} g6 {[%emt 0:00:57]} 6. O-O {[%emt 0:00:05]} Bg7 {[%emt 0:00:05]} 7. c3 {[%emt 0:00:07]} Qd6 {[%emt 0:08:59]} 8. Qc2 {[%emt 0:05:15]} O-O {[%emt 0:09:05]} 9. e4 {[%emt 0:00:21]} dxe4 {[%emt 0:01:15]} 10. dxe4 {[%emt 0:00:06]} e5 {[%emt 0:01:06]} 11. Na3 {[%emt 0:04:32]} exf4 {[%emt 0:13:52]} 12. gxf4 {[%emt 0:01:01]} Qe7 {[%emt 0:03:23]} 13. Re1 {[%emt 0:05:54]} Bg4 {[%emt 0:10:03]} 14. Nc4 {[%emt 0:04:06]} Rad8 {[%emt 0:07:36]} 15. Nce5 {[%emt 0:00:34]} Nxe5 {[%emt 0:01:56]} 16. Nxe5 {[%emt 0:00:09]} Bc8 {[%emt 0:01:23]} 17. Be3 {[%emt 0:01:43]} Ng4 {[%emt 0:01:22]} 18. Nxg4 {[%emt 0:00:12]} Bxg4 {[%emt 0:00:05]} 19. h3 {[%emt 0:00:36]} Be6 {[%emt 0:02:06]} 20. Rad1 {[%emt 0:08:45]} b6 {[%emt 0:00:39]} 21. Bf2 {[%emt 0:07:40]} Rxd1 {[%emt 0:07:46]} 22. Rxd1 {[%emt 0:00:28]} Rd8 {[%emt 0:01:53] normal} 1/2-1/2

[Event "GER-ch Youth U18 2019"]
[Site "Willingen"]
[Date "2019.06.14"]
[Round "8.13"]
[White "Knoedler, Marcel"]
[Black "Runte, Moritz"]
[Result "0-1"]
[ECO "C50"]
[WhiteElo "1633"]
[BlackElo "2096"]
[Annotator "NA"]
[PlyCount "38"]
[EventDate "2019.06.07"]
[EventType "swiss"]
[EventRounds "9"]
[EventCountry "GER"]
[SourceTitle "playchess.com"]
[Source "ChessBase"]
[SourceQuality "1"]
[TimeControl "40/5400+30:1800+30"]

1. e4 e5 {[%emt 0:00:00]} 2. Nf3 {[%emt 0:00:00]} Nc6 {[%emt 0:00:00]} 3. Bc4 {[%emt 0:01:13]} Bc5 {[%emt 0:00:13]} 4. O-O {[%emt 0:04:14]} Nf6 5. Nc3 {[%emt 0:06:01]} d6 {[%emt 0:03:16]} 6. h3 Be6 {[%emt 0:04:47]} 7. Bxe6 {[%emt 0:04:30]} fxe6 {[%emt 0:09:37]} 8. Na4 {[%emt 0:08:12]} Nxe4 9. Qe1 Bxf2+ {[%emt 0:04:33]} 10. Rxf2 {[%emt 0:01:58]} Nxf2 {[%emt 0:00:06]} 11. Qxf2 {[%emt 0:00:04]} O-O {[%emt 0:00:48]} 12. Qe2 Qf6 13. d3 {[%emt 0:04:36]} Nd4 {[%emt 0:06:37]} 14. Nxd4 {[%emt 0:00:18]} exd4 {[%emt 0:00:08]} 15. b3 {[%emt 0:06:07]} Rf7 {[%emt 0:02:34]} 16. Bd2 Raf8 17. Be1 {[%emt 0:09:22]} Qf1+ {[%emt 0:01:35]} 18. Qxf1 {[%emt 0:00:05]} Rxf1+ {[%emt 0:00:05]} 19. Kh2 R8f5 {normal} 0-1

[Event "GER-ch Youth U18 2019"]
[Site "Willingen"]
[Date "2019.06.14"]
[Round "8.14"]
[White "Sureshkumar, Atchuthan"]
[Black "Wendler, David"]
[Result "0-1"]
[ECO "B35"]
[WhiteElo "1502"]
[BlackElo "2166"]
[Annotator "NA"]
[PlyCount "42"]
[EventDate "2019.06.07"]
[EventType "swiss"]
[EventRounds "9"]
[EventCountry "GER"]
[SourceTitle "playchess.com"]
[Source "ChessBase"]
[SourceQuality "1"]
[TimeControl "40/5400+30:1800+30"]

1. e4 {[%emt 0:00:00]} c5 {[%emt 0:00:00]} 2. Nf3 {[%emt 0:00:11]} Nc6 3. d4 {[%emt 0:00:48]} cxd4 {[%emt 0:00:00]} 4. Nxd4 {[%emt 0:00:06]} g6 {[%emt 0:00:00]} 5. Be3 Nf6 {[%emt 0:00:00]} 6. Nc3 {[%emt 0:02:37]} Bg7 {[%emt 0:00:06]} 7. Bc4 {[%emt 0:02:57]} Qa5 {[%emt 0:03:30]} 8. f3 {[%emt 0:07:37]} Qb4 {[%emt 0:00:41]} 9. Bb3 {[%emt 0:06:45]} Nxe4 {[%emt 0:00:31]} 10. Nxc6 {[%emt 0:08:04]} Bxc3+ {[%emt 0:02:01]} 11. Ke2 {[%emt 0:05:09]} dxc6 12. Qd3 {[%emt 0:00:14]} Bxb2 {[%emt 0:01:01]} 13. Rab1 Nc3+ 14. Kf2 {[%emt 0:01:13]} Nxb1 {[%emt 0:00:56]} 15. Rxb1 Qc3 {[%emt 0:00:25]} 16. Rxb2 {[%emt 0:03:47]} Qxd3 {[%emt 0:00:20]} 17. cxd3 {[%emt 0:02:39]} b6 {[%emt 0:00:18]} 18. Bd4 {[%emt 0:02:49]} O-O {[%emt 0:00:19]} 19. Re2 {[%emt 0:02:04]} Re8 {[%emt 0:00:59]} 20. Bf6 {[%emt 0:00:39]} Kf8 {[%emt 0:00:13]} 21. Bg5 Ba6 {normal} 0-1